bitfinex-derivatives/quotes_BTCF0:USTF0_20220102
["timestamp","ask_amount","ask_price","bid_price","bid_amount"]
[1641154405641,0.32633567,47002.0,47001.0,0.001]
[1641154407045,0.14033567,47002.0,47001.0,0.001]
[1641154407648,0.32633567,47002.0,47001.0,0.001]
[1641154409251,0.32633567,47002.0,47001.0,0.01308746]
[1641154409453,0.14033567,47002.0,47001.0,0.001]
[1641154409753,0.32633567,47002.0,47001.0,0.01308746]
[1641154410053,0.32633567,47002.0,47001.0,0.001]
[1641154410256,0.32633567,47002.0,47001.0,0.01308746]
[1641154410454,0.41972442,47002.0,46998.0,0.01208746]
[1641154410652,0.18,46999.0,46988.0,0.16161438]
[1641154410853,0.18,46995.0,46988.0,0.16161438]
[1641154411053,0.18,46993.0,46988.0,0.16161438]
[1641154411754,0.367,46993.0,46988.0,0.16161438]
[1641154413053,0.18,46993.0,46988.0,0.16161438]
[1641154413453,0.18,46993.0,46985.0,0.35506685]
[1641154413656,0.00828187,46992.0,46985.0,0.35506685]
[1641154413857,0.07332187,46992.0,46985.0,0.35506685]
[1641154414257,0.07332187,46992.0,46984.0,0.61305863]
[1641154414459,0.00828187,46991.0,46984.0,0.02128055]
[1641154414858,0.18,46989.0,46983.0,0.35506685]
[1641154415760,0.366,46989.0,46983.0,0.35506685]
[1641154416361,0.00828292,46988.0,46983.0,0.35506685]
[1641154416862,0.00828292,46988.0,46982.0,0.06133935]
[1641154417263,0.00828292,46988.0,46985.0,1.54193027]
[1641154417463,0.00828292,46993.0,46985.0,1.54193027]
[1641154417664,0.009794,46994.0,46985.0,1.54193027]
[1641154417867,0.188,46988.0,46986.0,1.54193027]
[1641154418063,0.188,46988.0,46987.0,0.20127921]
[1641154418464,0.188,46988.0,46987.0,0.51645521]
[1641154418663,0.14033567,46995.0,46989.0,0.31547055]
[1641154419066,0.14033567,46995.0,46990.0,0.321005]
[1641154419267,0.00828152,46994.0,46990.0,0.321005]
[1641154419666,0.182,46995.0,46992.0,1.54515486]
[1641154420265,0.00828128,46994.0,46992.0,1.54515486]
[1641154421067,0.00828128,46994.0,46991.0,1.54515486]
[1641154421566,0.009794,47000.0,46992.0,0.319939]
[1641154421866,0.173,46994.0,46991.0,1.73215486]
[1641154422067,0.173,46994.0,46992.0,1.72515486]
[1641154422267,0.173,46994.0,46992.0,1.54515486]
[1641154422467,0.173,46994.0,46993.0,0.318627]
[1641154422668,0.173,46994.0,46992.0,1.54515486]
[1641154423071,0.009794,47000.0,46992.0,1.54515486]
[1641154423568,0.00827598,46999.0,46992.0,1.54515486]
[1641154423768,0.00827598,46999.0,46992.0,1.72215486]
[1641154424970,0.00827598,46999.0,46993.0,0.31866]
[1641154425672,0.18827598,46999.0,46993.0,0.49866]
[1641154425869,0.18,46999.0,46994.0,0.01208844]
[1641154426169,0.00827598,46998.0,46994.0,0.01208844]
[1641154426370,0.00827598,46998.0,46995.0,0.319731]
[1641154426669,0.00827598,46998.0,46996.0,0.01208844]
[1641154427468,0.00827598,47001.0,46995.0,0.01208844]
[1641154427672,0.00827598,47001.0,47000.0,0.001]
[1641154427869,0.14033567,47002.0,47000.0,0.001]
[1641154428069,0.14033567,47002.0,47001.0,0.001]
[1641154428471,0.14033567,47002.0,47001.0,0.01308844]
[1641154428670,0.14033567,47002.0,47001.0,0.29324066]
[1641154428972,0.54118335,47004.0,47001.0,0.09196844]
[1641154429171,0.54118335,47004.0,47001.0,0.09096844]
[1641154429371,0.02128066,47002.0,46994.0,1.54515486]
[1641154429871,0.18,47000.0,46997.0,1.54515486]
[1641154430470,0.18,47000.0,46998.0,0.01208915]
[1641154430671,1.297,47000.0,46998.0,0.01208915]
[1641154430874,1.297,47000.0,46986.0,1.81692451]
[1641154431072,0.18,46993.0,46986.0,1.81692451]
[1641154431271,0.24628,46993.0,46986.0,1.81692451]
[1641154431670,0.43028,46993.0,46987.0,0.82890886]
[1641154432073,0.25028,46993.0,46990.0,1.54769387]
[1641154432672,0.25028,46993.0,46991.0,0.0120896]
[1641154432873,0.39061567,46993.0,46991.0,0.0120896]
[1641154433171,0.20661567,46993.0,46988.0,0.0120896]
[1641154433376,0.20661567,46993.0,46992.0,0.0120896]
[1641154433574,0.20661567,46993.0,46989.0,0.0120896]
[1641154433772,0.36961567,46993.0,46992.0,0.0120896]
[1641154434272,0.36961567,46993.0,46990.0,0.0120896]
[1641154434472,0.36961567,46993.0,46992.0,0.0120896]
[1641154434876,0.36961567,46993.0,46991.0,0.0120896]
[1641154435076,0.20661567,46993.0,46991.0,0.0120896]
[1641154435276,0.20661567,46993.0,46989.0,0.0120896]
[1641154435477,0.20661567,46993.0,46992.0,0.0120896]
[1641154435677,0.37361567,46993.0,46991.0,0.187]
[1641154435880,0.37361567,46993.0,46992.0,0.0120896]
[1641154437077,0.20661567,46993.0,46992.0,0.0120896]
[1641154437278,0.14033567,46993.0,46992.0,0.0120896]
[1641154437679,0.28833567,46993.0,46992.0,0.2010896]
[1641154438384,0.14033567,47001.0,46992.0,0.3810896]
[1641154438585,0.84276114,47010.0,47000.0,1.00127119]
[1641154438781,0.84276114,47010.0,47009.0,0.46067134]
[1641154438979,0.84276114,47010.0,47009.0,0.34796134]
[1641154439279,0.84276114,47010.0,47009.0,0.36661594]
[1641154439478,0.84276114,47010.0,47009.0,0.36761594]
[1641154439681,0.84276114,47010.0,47009.0,0.56061594]
[1641154440085,0.84276114,47017.0,47009.0,0.56061594]
[1641154440284,0.18,47016.0,47009.0,0.55961594]
[1641154440781,0.18,47016.0,47014.0,0.14033567]
[1641154440984,0.84276114,47017.0,47014.0,0.14033567]
[1641154441181,0.18,47020.0,47014.0,0.14033567]
[1641154441182,1.02276114,47020.0,47014.0,0.14033567]
[1641154441380,0.18,47016.0,47014.0,0.14033567]
[1641154441781,0.18,47016.0,47014.0,0.32333567]
[1641154441981,0.84276114,47020.0,47014.0,0.32333567]
[1641154442184,0.84276114,47019.0,47014.0,0.32333567]
[1641154442580,0.84276114,47019.0,47015.0,0.33295187]
[1641154442784,0.84276114,47019.0,47015.0,0.01208487]
[1641154443183,0.01146863,47018.0,47014.0,0.96965991]
[1641154443783,0.01146863,47020.0,47014.0,1.15765991]
[1641154443982,0.01146863,47020.0,47015.0,0.320466]
[1641154444182,0.01146863,47020.0,47015.0,0.33255085]
[1641154444382,0.01146863,47020.0,47015.0,0.320466]
[1641154444585,0.01146863,47020.0,47015.0,0.500466]
[1641154444885,0.01146863,47020.0,47019.0,0.31000513]
[1641154445288,0.01146863,47022.0,47019.0,0.63678982]
[1641154445487,0.01146863,47022.0,47019.0,0.81678982]
[1641154445687,0.01146863,47020.0,47019.0,0.82978982]
[1641154445885,0.01146863,47021.0,47019.0,0.50300513]
[1641154446091,0.01146863,47020.0,47019.0,0.50300513]
[1641154446487,0.01146863,47027.0,47019.0,0.50300513]
[1641154446686,0.01146863,47020.0,47019.0,0.33333567]
[1641154446888,0.01146863,47026.0,47019.0,0.33333567]
[1641154447089,0.01146863,47026.0,47019.0,0.14033567]
[1641154447292,0.01146863,47020.0,47019.0,0.14033567]
[1641154447492,0.01146863,47025.0,47019.0,0.14033567]
[1641154447692,0.01146863,47020.0,47019.0,0.32933567]
[1641154447990,0.01146863,47024.0,47019.0,0.32933567]
[1641154448190,0.01146863,47020.0,47019.0,0.32933567]
[1641154448390,0.01146863,47023.0,47019.0,0.32933567]
[1641154448595,0.01146863,47020.0,47019.0,0.40745226]
[1641154448790,0.01146863,47022.0,47019.0,0.40745226]
[1641154448991,0.01146863,47022.0,47019.0,0.21845226]
[1641154449190,0.01146863,47027.0,47019.0,0.21845226]
[1641154449391,0.36218916,47026.0,47021.0,0.82804091]
[1641154449593,0.36218916,47026.0,47022.0,0.59145779]
[1641154449891,0.01146863,47025.0,47022.0,0.59145779]
[1641154450100,0.01146863,47025.0,47024.0,0.35487287]
[1641154450898,0.01146863,47025.0,47024.0,0.49520854]
[1641154451301,0.01146863,47025.0,47024.0,0.57638854]
[1641154451703,0.01146863,47025.0,47024.0,1.08741354]
[1641154451905,0.01146863,47025.0,47024.0,0.73254067]
[1641154452102,0.94486247,47025.0,47024.0,0.73254067]
[1641154452305,0.94486247,47025.0,47024.0,0.41151567]
[1641154452503,0.94486247,47025.0,47024.0,0.33133567]
[1641154453002,0.85422977,47025.0,47024.0,0.33133567]
[1641154453205,0.37398343,47025.0,47024.0,0.14133567]
[1641154453805,0.37398343,47025.0,47024.0,0.33333567]
[1641154454407,0.37398343,47025.0,47024.0,0.33233567]
[1641154455207,0.55398343,47025.0,47024.0,0.14033567]
[1641154455406,0.19146863,47025.0,47024.0,0.14033567]
[1641154455609,0.19146863,47025.0,47019.0,0.14033567]
[1641154455808,0.35308661,47025.0,47024.0,0.185]
[1641154456311,1.47008661,47025.0,47022.0,1.30242493]
[1641154456509,1.47008661,47025.0,47019.0,0.14033567]
[1641154456711,0.18,47020.0,47019.0,0.14033567]
[1641154456907,0.18,47020.0,47015.0,1.42354912]
[1641154457109,0.18,47016.0,47015.0,1.42354912]
[1641154457308,0.01146863,47019.0,47015.0,1.42354912]
[1641154457708,0.19346863,47016.0,47015.0,1.59754912]
[1641154457908,0.182,47016.0,47015.0,0.174]
[1641154458110,0.78634103,47016.0,47015.0,0.174]
[1641154458309,0.79780966,47016.0,47015.0,0.174]
[1641154458912,0.55605698,47016.0,47015.0,0.174]
[1641154459209,0.37405698,47016.0,47014.0,0.14033567]
[1641154459709,0.01146863,47015.0,47014.0,1.73988479]
[1641154459910,0.01146863,47015.0,47014.0,1.74030999]
[1641154460911,0.01146863,47015.0,47014.0,1.75239424]
[1641154461113,0.01146863,47015.0,47014.0,1.57639424]
[1641154461712,0.18846863,47015.0,47014.0,1.75439424]
[1641154461911,0.177,47015.0,47014.0,1.75439424]
[1641154462112,0.18846863,47015.0,47014.0,1.75439424]
[1641154463716,0.15846863,47015.0,47014.0,0.31084512]
[1641154464722,0.33846863,47015.0,47014.0,0.31084512]
[1641154464916,0.33846863,47015.0,47014.0,0.17050945]
[1641154465118,0.19146863,47015.0,47014.0,0.0004252]
[1641154465917,0.37946863,47015.0,47014.0,0.0004252]
[1641154467018,0.19146863,47015.0,47014.0,0.0004252]
[1641154467818,0.38046863,47015.0,47014.0,0.0004252]
[1641154469119,0.19146863,47015.0,47014.0,0.0004252]
[1641154469719,0.38146863,47015.0,47014.0,0.0004252]
[1641154471221,0.19146863,47015.0,47014.0,0.0004252]
[1641154471825,0.38046863,47015.0,47014.0,0.0004252]
[1641154473124,0.19146863,47015.0,47014.0,0.0004252]
[1641154473724,0.38046863,47015.0,47014.0,0.0004252]
[1641154475127,0.19146863,47015.0,47014.0,0.0004252]
[1641154475732,0.38246863,47015.0,47014.0,0.0004252]
[1641154477134,0.01146863,47015.0,47014.0,0.0004252]
[1641154477831,0.20446863,47015.0,47014.0,0.0004252]
[1641154479232,0.01146863,47015.0,47014.0,0.0004252]
[1641154479835,0.80980966,47015.0,47014.0,1.30144274]
[1641154481037,0.61580966,47015.0,47014.0,1.30144274]
[1641154481836,0.80980966,47015.0,47014.0,1.30144274]
[1641154482237,0.80980966,47015.0,47014.0,1.31352793]
[1641154483139,0.61580966,47015.0,47014.0,0.01251039]
[1641154483340,0.3740814,47015.0,47014.0,0.01251039]
[1641154483840,0.5590814,47015.0,47014.0,0.01251039]
[1641154484042,0.19646863,47015.0,47014.0,0.01251039]
[1641154484241,0.19646863,47015.0,47014.0,1.31672366]
[1641154485143,0.01146863,47015.0,47014.0,1.31672366]
[1641154485846,0.19846863,47015.0,47014.0,1.31672366]
[1641154486344,0.19846863,47015.0,47014.0,0.01251039]
[1641154486544,0.19846863,47015.0,47014.0,1.19753582]
[1641154487045,0.01146863,47015.0,47014.0,1.18545063]
[1641154487445,0.01146863,47015.0,47014.0,1.1975358]
[1641154487644,0.01146863,47016.0,47014.0,1.1975358]
[1641154487845,0.17846863,47015.0,47014.0,1.3661106]
[1641154488046,0.17846863,47015.0,47014.0,1.36653577]
[1641154488247,0.17846863,47015.0,47014.0,1.3544506]
[1641154488445,0.17846863,47015.0,47014.0,0.16942517]
[1641154488646,0.17846863,47015.0,47014.0,1.47363844]
[1641154489755,0.17846863,47015.0,47014.0,0.31986617]
[1641154489948,0.18146863,47015.0,47014.0,0.49386617]
[1641154491255,0.01146863,47015.0,47014.0,0.31986617]
[1641154491658,0.01146863,47021.0,47014.0,0.31986617]
[1641154491855,0.172,47015.0,47014.0,0.494441]
[1641154492055,0.18346863,47015.0,47014.0,0.495441]
[1641154493357,0.01146863,47015.0,47014.0,0.320441]
[1641154493757,0.01146863,47021.0,47014.0,0.320441]
[1641154493957,0.18046863,47015.0,47014.0,0.492441]
[1641154494161,0.18046863,47015.0,47014.0,0.493441]
[1641154494357,0.169,47015.0,47014.0,0.493441]
[1641154494557,0.36239083,47022.0,47016.0,0.25637834]
[1641154494758,0.36239083,47022.0,47017.0,0.02126566]
[1641154494957,0.36239083,47022.0,47020.0,0.20126402]
[1641154495161,0.36239083,47022.0,47020.0,0.27063402]
[1641154495358,0.36239083,47022.0,47021.0,0.318967]
[1641154495560,0.36239083,47022.0,47021.0,0.45930267]
[1641154495960,0.36239083,47022.0,47021.0,0.65330267]
[1641154496362,0.76907744,47025.0,47021.0,0.83330267]
[1641154496560,0.0001,47030.0,47025.0,0.3380589]
[1641154496561,0.36229022,47029.0,47025.0,0.3380589]
[1641154496962,0.36229022,47029.0,47026.0,0.315721]
[1641154497563,0.0001,47030.0,47026.0,0.315721]
[1641154497564,0.0001,47030.0,47028.0,0.14033567]
[1641154498059,0.0001,47030.0,47029.0,0.31719]
[1641154498260,0.0001,47030.0,47028.0,0.14033567]
[1641154498763,0.0001,47030.0,47029.0,0.318783]
[1641154499862,0.0001,47030.0,47029.0,0.511783]
[1641154501163,0.0001,47030.0,47029.0,0.318783]
[1641154501864,0.0001,47030.0,47029.0,0.511783]
[1641154502464,0.0001,47030.0,47029.0,0.512783]
[1641154503365,0.0001,47030.0,47029.0,0.319783]
[1641154503566,0.0001,47030.0,47029.0,0.33186339]
[1641154503966,0.0001,47030.0,47029.0,0.52486339]
[1641154505266,0.0001,47030.0,47029.0,0.33186339]
[1641154505868,0.0001,47030.0,47029.0,0.52586339]
[1641154506368,0.0001,47030.0,47029.0,0.20608039]
[1641154506569,0.08577,47030.0,47029.0,0.20608039]
[1641154507269,0.08577,47030.0,47029.0,0.01208039]
[1641154507869,0.08577,47030.0,47029.0,0.19508039]
[1641154509370,0.08577,47030.0,47028.0,0.14033567]
[1641154509571,0.45947451,47030.0,47029.0,0.01208101]
[1641154509972,0.01145814,47029.0,47028.0,0.32533567]
[1641154510171,0.37380451,47030.0,47028.0,0.32533567]
[1641154510371,0.19145814,47029.0,47028.0,0.32533567]
[1641154511171,0.19145814,47029.0,47028.0,0.14033567]
[1641154511872,0.19145814,47029.0,47028.0,0.32233567]
[1641154512273,0.01145814,47029.0,47028.0,0.32233567]
[1641154512671,0.01155814,47030.0,47028.0,0.32233567]
[1641154512872,0.01145814,47029.0,47028.0,0.3344168]
[1641154513276,0.01145814,47029.0,47028.0,0.14033567]
[1641154513474,0.01145814,47029.0,47028.0,0.45887267]
[1641154513673,0.0001,47030.0,47028.0,0.45887267]
[1641154513874,0.01145814,47029.0,47028.0,0.65487267]
[1641154514074,0.0001,47030.0,47028.0,1.00727434]
[1641154514275,0.01145814,47029.0,47028.0,1.00727434]
[1641154514675,0.0001,47030.0,47028.0,1.00727434]
[1641154514877,0.01145814,47029.0,47028.0,1.00727434]
[1641154515176,0.0001,47030.0,47029.0,0.35240167]
[1641154515677,0.0001,47030.0,47029.0,0.69320265]
[1641154515879,0.0001,47030.0,47029.0,0.53280098]
[1641154516778,0.0001,47040.0,47029.0,0.53280098]
[1641154516979,0.0001,47040.0,47035.0,0.02125724]
[1641154517380,0.0001,47040.0,47036.0,0.320271]
[1641154517982,0.0001,47040.0,47036.0,0.505271]
[1641154518780,0.0001,47040.0,47036.0,0.577551]
[1641154519280,0.0001,47040.0,47036.0,0.392551]
[1641154519680,0.0001,47040.0,47038.0,0.14033567]
[1641154521882,0.0001,47040.0,47038.0,0.32733567]
[1641154523182,0.0001,47040.0,47039.0,0.3199]
[1641154523384,0.0001,47040.0,47038.0,0.14033567]
[1641154523985,0.0001,47040.0,47038.0,0.32533567]
[1641154524988,0.0001,47040.0,47039.0,0.15050267]
[1641154525387,0.0001,47040.0,47039.0,0.46776867]
[1641154525789,0.0001,47040.0,47039.0,0.4890243]
[1641154525988,0.0001,47040.0,47039.0,0.6800243]
[1641154526193,0.0001,47040.0,47039.0,0.8600243]
[1641154526389,0.0001,47040.0,47039.0,0.6800243]
[1641154527288,0.0001,47040.0,47039.0,0.1717583]
[1641154528088,0.0001,47040.0,47039.0,0.3607583]
[1641154528292,0.0001,47040.0,47039.0,0.71301444]
[1641154528489,0.0001,47040.0,47039.0,0.72509238]
[1641154528690,0.0001,47040.0,47039.0,0.70383675]
[1641154528892,0.1801,47040.0,47039.0,0.55333408]
[1641154529090,0.1801,47040.0,47039.0,0.54125614]
[1641154529289,0.1801,47040.0,47039.0,0.35225614]
[1641154529692,0.1801,47040.0,47038.0,0.35225614]
[1641154529892,0.08742,47040.0,47038.0,0.35225614]
[1641154530090,0.08742,47040.0,47039.0,0.179]
[1641154530894,0.09887776,47040.0,47039.0,0.179]
[1641154531292,0.09887776,47040.0,47033.0,0.14033567]
[1641154531596,0.01145776,47039.0,47034.0,0.01207948]
[1641154531792,0.01145776,47039.0,47036.0,1.28553252]
[1641154532393,0.01145776,47039.0,47037.0,0.58459283]
[1641154532892,0.19145776,47039.0,47037.0,0.58459283]
[1641154533093,0.01145776,47039.0,47037.0,0.58459283]
[1641154533496,0.08742,47040.0,47037.0,0.58459283]
[1641154533497,0.01145776,47038.0,47037.0,0.58459283]
[1641154533992,0.01145776,47038.0,47037.0,1.09383783]
[1641154534197,0.01145776,47038.0,47037.0,0.509245]
[1641154534394,0.0001,47040.0,47037.0,0.509245]
[1641154534596,0.01145776,47038.0,47037.0,0.509245]
[1641154534796,0.01155776,47040.0,47037.0,0.189]
[1641154535196,0.01145776,47038.0,47037.0,0.189]
[1641154535396,0.01145776,47039.0,47035.0,0.35054771]
[1641154535598,0.01145776,47038.0,47035.0,0.35054771]
[1641154535995,0.0001,47040.0,47035.0,0.53354771]
[1641154536396,0.01145776,47037.0,47035.0,0.53354771]
[1641154536701,0.0001,47040.0,47035.0,0.53354771]
[1641154536900,0.01145776,47036.0,47035.0,0.53354771]
[1641154537400,0.0001,47040.0,47035.0,0.53354771]
[1641154537401,0.01155776,47040.0,47035.0,0.35054771]
[1641154537600,0.01155776,47040.0,47038.0,0.58615616]
[1641154537800,0.0001,47040.0,47038.0,0.58615616]
[1641154538302,0.01145776,47039.0,47038.0,0.58615616]
[1641154538499,0.01155776,47040.0,47038.0,0.58615616]
[1641154538701,0.01145776,47039.0,47038.0,0.58615616]
[1641154539406,0.0001,47040.0,47038.0,0.58615616]
[1641154539603,0.01145776,47039.0,47038.0,0.58615616]
[1641154539801,0.01145776,47039.0,47037.0,0.58615616]
[1641154540014,0.01155776,47040.0,47038.0,0.18]
[1641154540416,0.0001,47040.0,47039.0,0.35070792]
[1641154542021,0.0001,47040.0,47039.0,0.53270792]
[1641154543520,0.0001,47040.0,47039.0,0.35070792]
[1641154544019,0.0001,47040.0,47039.0,0.53070792]
[1641154545324,0.0001,47040.0,47039.0,0.35070792]
[1641154545525,0.0001,47040.0,47038.0,0.35070792]
[1641154545526,0.07721,47040.0,47038.0,0.35070792]
[1641154546024,0.009794,47039.0,47038.0,0.52570792]
[1641154546224,0.009794,47039.0,47037.0,0.58615616]
[1641154546426,0.18,47038.0,47037.0,0.58615616]
[1641154546623,0.18,47038.0,47036.0,0.58615616]
[1641154546823,0.18,47037.0,47036.0,0.58615616]
[1641154547027,1.31826426,47037.0,47029.0,1.28553252]
[1641154547229,0.18,47035.0,47029.0,1.28553252]
[1641154547726,0.18,47035.0,47025.0,1.4179883]
[1641154547727,0.18,47035.0,47032.0,0.58532775]
[1641154548028,0.50033567,47035.0,47032.0,0.58532775]
[1641154548526,0.50033567,47035.0,47028.0,1.31099117]
[1641154548726,0.18,47029.0,47028.0,1.31099117]
[1641154548926,0.18,47029.0,47028.0,0.14033567]
[1641154549127,0.32033567,47035.0,47028.0,0.14033567]
[1641154549327,0.18,47029.0,47028.0,0.14033567]
[1641154549927,0.26897,47029.0,47028.0,0.14033567]
[1641154550128,0.45097,47029.0,47028.0,0.22733567]
[1641154551327,0.26897,47029.0,47028.0,0.14033567]
[1641154551528,0.08897,47029.0,47028.0,0.14033567]
[1641154551728,0.26897,47029.0,47028.0,0.14033567]
[1641154552130,0.26997,47029.0,47028.0,0.24533567]
[1641154553429,0.08897,47029.0,47028.0,0.14033567]
[1641154554029,0.26997,47029.0,47028.0,0.24433567]
[1641154555432,0.08897,47029.0,47028.0,0.14033567]
[1641154555633,0.01146491,47029.0,47028.0,0.14033567]
[1641154556035,0.137,47029.0,47028.0,0.28233567]
[1641154556233,0.14846491,47029.0,47028.0,0.28233567]
[1641154556633,0.14846491,47029.0,47028.0,0.60088467]
[1641154557338,0.01146491,47029.0,47028.0,0.45888467]
[1641154557735,0.01146491,47033.0,47028.0,0.45888467]
[1641154558034,0.18946491,47029.0,47028.0,0.60588467]
[1641154558236,0.178,47029.0,47028.0,0.60588467]
[1641154558437,0.18946491,47029.0,47028.0,0.60588467]
[1641154559538,0.01146491,47029.0,47028.0,0.45888467]
[1641154560041,0.182,47029.0,47028.0,0.60888467]
[1641154560236,0.19346491,47029.0,47028.0,0.60888467]
[1641154560441,0.19346491,47029.0,47028.0,0.29033567]
[1641154561238,0.19346491,47029.0,47028.0,2.01405255]
[1641154561638,0.01146491,47029.0,47028.0,1.86405255]
[1641154561939,0.01146491,47033.0,47028.0,1.86405255]
[1641154562139,0.18,47029.0,47028.0,2.02405255]
[1641154562542,0.19146491,47029.0,47028.0,2.02405255]
[1641154562942,0.19146491,47029.0,47028.0,0.61906867]
[1641154563440,0.01146491,47029.0,47028.0,0.45906867]
[1641154564140,0.173,47029.0,47028.0,0.61914872]
[1641154564341,0.18446491,47029.0,47028.0,0.61914872]
[1641154564541,0.18446491,47029.0,47028.0,2.0241326]
[1641154564940,0.18446491,47029.0,47028.0,0.61914872]
[1641154565440,0.01146491,47029.0,47028.0,0.47114872]
[1641154566241,0.172,47029.0,47028.0,0.62414872]
[1641154566440,0.172,47029.0,47028.0,0.30541572]
[1641154566842,0.18346491,47029.0,47028.0,0.30541572]
[1641154567342,0.01146491,47029.0,47028.0,0.15241572]
[1641154567945,0.01146491,47031.0,47028.0,0.15241572]
[1641154568142,0.172,47029.0,47028.0,0.30541572]
[1641154568342,0.172,47029.0,47028.0,0.29333567]
[1641154568742,0.18346491,47029.0,47028.0,0.29333567]
[1641154569345,0.18346491,47029.0,47028.0,0.61150567]
[1641154569545,0.01146491,47029.0,47028.0,0.45850567]
[1641154569945,0.01146491,47031.0,47028.0,0.45850567]
[1641154570146,0.17,47029.0,47028.0,0.29333567]
[1641154570346,0.18146491,47029.0,47028.0,0.29333567]
[1641154570747,0.18146491,47029.0,47028.0,0.63333611]
[1641154571450,0.01146491,47029.0,47028.0,0.48033611]
[1641154572051,0.01146491,47035.0,47028.0,0.48033611]
[1641154572252,0.18246491,47029.0,47028.0,0.63833611]
[1641154572551,0.171,47029.0,47028.0,0.63933611]
[1641154572752,0.01248843,47029.0,47028.0,0.63933611]
[1641154572951,0.01248843,47029.0,47028.0,0.63833611]
[1641154573352,0.02394651,47029.0,47028.0,0.63833611]
[1641154573554,0.01145808,47029.0,47028.0,0.48033611]
[1641154573767,0.01145808,47029.0,47028.0,0.16159411]
[1641154573952,0.25186808,47035.0,47028.0,0.16159411]
[1641154574152,0.01145808,47034.0,47028.0,0.31433567]
[1641154575853,0.36244243,47031.0,47029.0,1.28547229]
[1641154576253,0.01145808,47030.0,47029.0,1.28547229]
[1641154576955,0.09461808,47030.0,47029.0,1.28547229]
[1641154577157,0.09461808,47030.0,47028.0,0.30433567]
[1641154577556,0.01145808,47029.0,47028.0,0.14033567]
[1641154578157,0.01145808,47029.0,47028.0,0.31033567]
[1641154579457,0.01145808,47029.0,47028.0,0.14033567]
[1641154580256,0.01145808,47029.0,47028.0,0.31333567]
[1641154581281,0.01145808,47030.0,47028.0,0.31333567]
[1641154581481,0.01145808,47030.0,47028.0,1.54266908]
[1641154581881,0.01145808,47031.0,47028.0,1.54266908]
[1641154582083,0.01145808,47031.0,47028.0,0.14033567]
[1641154582383,0.01145808,47029.0,47028.0,0.31333567]
[1641154582583,0.01145808,47030.0,47028.0,0.31333567]
[1641154582783,0.01145808,47029.0,47028.0,0.31333567]
[1641154583384,0.01145808,47030.0,47028.0,0.31333567]
[1641154583583,0.36244243,47034.0,47028.0,0.31333567]
[1641154583584,0.01145808,47029.0,47028.0,0.15241634]
[1641154583883,0.01145808,47029.0,47028.0,0.14033567]
[1641154584083,0.01145808,47033.0,47028.0,0.14033567]
[1641154584284,0.37390051,47033.0,47028.0,0.31033567]
[1641154584983,0.01145808,47032.0,47028.0,0.31033567]
[1641154585586,0.01145808,47032.0,47028.0,0.14033567]
[1641154585788,0.18,47030.0,47028.0,0.14033567]
[1641154586186,0.01145808,47029.0,47028.0,0.30633567]
[1641154586386,0.01145808,47029.0,47028.0,0.32759632]
[1641154586585,0.01145808,47033.0,47028.0,0.32759632]
[1641154586986,0.01145808,47029.0,47028.0,0.32759632]
[1641154587489,0.36244243,47034.0,47028.0,0.32759632]
[1641154587490,0.01145808,47033.0,47028.0,0.32759632]
[1641154587688,0.01145808,47029.0,47028.0,0.16159632]
[1641154587888,0.08264808,47032.0,47028.0,0.16159632]
[1641154588188,0.01145808,47029.0,47028.0,0.33659632]
[1641154588393,0.07119,47032.0,47028.0,0.33659632]
[1641154588394,0.01145808,47031.0,47028.0,0.33659632]
[1641154589589,0.01145808,47031.0,47028.0,0.16159632]
[1641154589790,0.01145808,47034.0,47028.0,0.16159632]
[1641154590192,0.01145808,47030.0,47028.0,0.33359632]
[1641154590391,0.01145808,47033.0,47028.0,0.33359632]
[1641154590994,0.01145808,47029.0,47028.0,0.33359632]
[1641154591391,0.01145808,47034.0,47028.0,0.33359632]
[1641154591591,0.01145808,47034.0,47028.0,0.16159632]
[1641154591794,0.01145808,47034.0,47028.0,0.14033567]
[1641154591994,0.01145808,47029.0,47028.0,0.14033567]
[1641154592194,0.01145808,47033.0,47028.0,0.30233567]
[1641154592594,0.01145808,47034.0,47028.0,0.30233567]
[1641154592895,0.01145808,47032.0,47028.0,0.30233567]
[1641154593092,0.06869808,47032.0,47028.0,0.30233567]
[1641154593392,0.05724,47032.0,47030.0,1.16833041]
[1641154593793,0.01145808,47031.0,47030.0,1.16833041]
[1641154594192,0.01145808,47031.0,47030.0,1.33433041]
[1641154594593,0.19145808,47031.0,47030.0,0.166]
[1641154594793,0.22252084,47031.0,47024.0,1.40233341]
[1641154594994,0.18,47025.0,47024.0,1.40233341]
[1641154595493,0.189794,47025.0,47024.0,1.40233341]
[1641154595696,0.20225208,47025.0,47024.0,1.40233341]
[1641154595896,0.20225208,47025.0,47022.0,0.70991393]
[1641154596100,0.20125208,47025.0,47019.0,0.0212644]
[1641154596296,0.18,47020.0,47019.0,0.0212644]
[1641154596497,0.27326,47020.0,47019.0,0.0212644]
[1641154596898,0.28471808,47020.0,47019.0,0.0212644]
[1641154597499,0.10471808,47020.0,47019.0,0.0212644]
[1641154598203,0.27371808,47020.0,47019.0,0.0212644]
[1641154598800,0.45371808,47020.0,47019.0,0.0212644]
[1641154599000,0.45371808,47020.0,47019.0,0.03334816]
[1641154599500,0.28471808,47020.0,47019.0,0.03334816]
[1641154600101,0.28471808,47020.0,47015.0,0.14033567]
[1641154600300,0.18,47016.0,47015.0,0.14033567]
[1641154600501,0.18,47016.0,47011.0,1.54266908]
[1641154600701,0.33179375,47016.0,47015.0,0.01208458]
[1641154600903,0.33179375,47016.0,47006.0,0.70991393]
[1641154601110,0.18,47007.0,47006.0,0.70991393]
[1641154601303,0.25176,47007.0,47005.0,0.70991393]
[1641154601502,0.261554,47007.0,47005.0,0.70991393]
[1641154602202,0.01208687,47006.0,47005.0,0.70991393]
[1641154602605,0.15242254,47006.0,47005.0,0.70991393]
[1641154603005,0.15242254,47006.0,47002.0,1.29242949]
[1641154603205,1.117,47005.0,47002.0,1.29242949]
[1641154603406,1.12908687,47005.0,47002.0,1.29242949]
[1641154603711,0.18,47004.0,47002.0,1.29242949]
[1641154603905,1.30908687,47004.0,47002.0,1.29242949]
[1641154604107,1.91315758,47004.0,47002.0,1.29242949]
[1641154604308,0.01208687,47003.0,47002.0,1.29242949]
[1641154605111,1.21975541,47003.0,46999.0,1.29242949]
[1641154605310,0.20128143,47000.0,46999.0,1.29242949]
[1641154605710,1.31828143,47000.0,46999.0,1.29242949]
[1641154606011,0.29890782,47000.0,46999.0,1.29242949]
[1641154606213,0.28990782,47000.0,46999.0,1.29242949]
[1641154606411,0.2043683,47000.0,46999.0,1.29242949]
[1641154606613,0.34470397,47000.0,46999.0,1.29242949]
[1641154606811,0.34470397,47000.0,46996.0,1.29242949]
[1641154606812,0.43537251,47000.0,46996.0,1.29242949]